fUSD/lending_fUSD_20260126
["ID","MTS","AMOUNT","RATE_DAILY","PERIOD"]
[403597658,1769404233219,-250.43395906,0.00014755,2]
[403597659,1769404233228,-151.0,0.00014755,2]
[403597660,1769404233237,-500.0,0.00014755,2]
[403597661,1769404233246,-151.0,0.00014755,2]
[403597662,1769404233255,-500.0,0.00014755,2]
[403597663,1769404233263,-151.0,0.00014755,2]
[403597664,1769404233272,-500.0,0.00014755,2]
[403597665,1769404233281,-500.0,0.00014755,2]
[403597666,1769404233290,-151.0,0.00014755,2]
[403597667,1769404233299,-151.0,0.00014755,2]
[403597668,1769404233308,-151.0,0.00014755,2]
[403597669,1769404233317,-151.0,0.00014755,2]
[403597670,1769404233327,-151.0,0.00014755,2]
[403597671,1769404233336,-151.0,0.00014755,2]
[403597672,1769404233346,-151.0,0.00014755,2]
[403597673,1769404233355,-151.0,0.00014755,2]
[403597674,1769404233364,-500.0,0.00014755,2]
[403597675,1769404233374,-3240.0,0.00014764,2]
[403597676,1769404233384,-969.1,0.00014771,2]
[403597677,1769404233393,-179.79,0.00014782,2]
[403597678,1769404233403,-200.02,0.00014852,2]
[403597679,1769404233413,-1000.0,0.00014907,2]
[403597680,1769404233422,-179.79,0.0001493,2]
[403597681,1769404233432,-500.0,0.00014989,2]
[403597682,1769404233441,-500.0,0.00014989,2]
[403597683,1769404233452,-500.0,0.00014989,2]
[403597684,1769404233463,-500.0,0.00014989,2]
[403597685,1769404233472,-356.0308737,0.00014989,2]
[403597686,1769404233481,-500.0,0.00014989,2]
[403597687,1769404233491,-76.1449975,0.00014989,2]
[403597688,1769404233505,-99.55863212,0.00014989,2]
[403597689,1769404233514,-500.0,0.00014989,2]
[403597690,1769404233524,-500.0,0.00014989,2]
[403597691,1769404233534,-60.38493859,0.00014989,2]
[403597692,1769404233545,-439.61506141,0.00014989,2]
[403597693,1769404233555,-254.10007489,0.00014989,2]
[403597694,1769404233564,-500.0,0.00014989,2]
[403597695,1769404233574,-500.0,0.00014989,2]
[403597696,1769404233584,-500.0,0.00014989,2]
[403597697,1769404233593,-368.38378591,0.00014989,2]
[403597698,1769404233602,-474.97832184,0.00014989,2]
[403597699,1769404238227,-25.02167816,0.00014989,2]
[403597700,1769404238236,-500.0,0.00014989,2]
[403597701,1769404238246,-109.81096165,0.00014989,2]
[403597702,1769404238258,-390.18903835,0.00014989,2]
[403597703,1769404238267,-500.0,0.00014989,2]
[403597704,1769404238276,-282.77870168,0.00014989,2]
[403597705,1769404238288,-217.22129832,0.00014989,2]
[403597706,1769404238299,-500.0,0.00014989,2]
[403597707,1769404238310,-156.16870168,0.00014989,2]
[403597708,1769404238322,-343.83129832,0.00014989,2]
[403597709,1769404238332,-500.0,0.00014989,2]
[403597710,1769404238342,-500.0,0.00014989,2]
[403597711,1769404238352,-500.0,0.00014989,2]
[403597712,1769404238362,-500.0,0.00014989,2]
[403597713,1769404238372,-500.0,0.00014989,2]
[403597714,1769404238382,-500.0,0.00014989,2]
[403597715,1769404238392,-500.0,0.00014989,2]
[403597716,1769404238402,-192.04416885,0.00014989,2]
[403597717,1769404238412,-500.0,0.00014989,2]
[403597718,1769404238422,-500.0,0.00014989,2]
[403597719,1769404238432,-500.0,0.00014989,2]
[403597720,1769404238443,-500.0,0.00014989,2]
[403597721,1769404238455,-500.0,0.00014989,2]
[403597722,1769404238465,-500.0,0.00014989,2]
[403597723,1769404238475,-500.0,0.00014989,2]
[403597724,1769404238486,-500.0,0.00014989,2]
[403597725,1769404238497,-500.0,0.00014989,2]
[403597726,1769404238507,-220.37,0.0001499,2]
[403597727,1769404238517,-5000.0,0.00015,2]
[403597729,1769404238528,-179.79,0.00015077,2]
[403597731,1769404238538,-179.79,0.00015225,2]
[403597733,1769404238548,-220.38,0.00015264,2]
[403597735,1769404238557,-1000.0,0.00015385,2]
[403597737,1769404238567,-172.27340265,0.00015418,2]
[403597739,1769404238576,-234.8,0.00015461,2]
[403597741,1769404238585,-500.0,0.00015479,2]
[403597743,1769404238597,-10000.0,0.000155,2]
[403597744,1769404238607,-166.7,0.00015518,2]
[403597745,1769404238616,-174.61919141,0.00015615,2]
[403597747,1769404238625,-721.12765535,0.00015615,2]
[403597749,1769404238635,-578.20924308,0.00015615,2]
[403597751,1769404238644,-854.2589148,0.00015615,2]
[403597753,1769404238654,-322.6107,0.00015615,2]
[403597755,1769404238663,-151.0,0.00015615,2]
[403597757,1769404238672,-151.0,0.00015615,2]
[403597759,1769404238681,-151.0,0.00015615,2]
[403597761,1769404238690,-151.0,0.00015615,2]
[403597763,1769404238699,-151.0,0.00015615,2]
[403597765,1769404238708,-151.0,0.00015615,2]
[403597767,1769404238718,-151.0,0.00015615,2]
[403597769,1769404238727,-151.0,0.00015615,2]
[403597771,1769404238736,-151.0,0.00015615,2]
[403597773,1769404238746,-151.0,0.00015615,2]
[403597775,1769404238755,-151.0,0.00015615,2]
[403597777,1769404238764,-2700.0,0.000158,5]
[403597779,1769404238774,-152.0,0.00015812,3]
[403597781,1769404238784,-229.0,0.00015875,2]
[403597783,1769404238794,-5888.0,0.00015894,2]
[403597785,1769404238804,-5400.0,0.000159,5]
[403597787,1769404238813,-925.571,0.00015906,2]
[403597789,1769404238823,-1204.0,0.00015906,2]
[403597791,1769404238832,-1676.715,0.00015991,2]
[403597793,1769404238842,-180.54,0.00015991,2]
[403597824,1769404239129,-150.0,0.00016035,2]
[403597827,1769404239153,-150.0,0.00016035,2]
[403597829,1769404239163,-150.0,0.00016035,2]
[403597831,1769404239172,-1315.0,0.00016051,2]
[403597833,1769404239183,-2455.897,0.00016051,2]
[403597835,1769404239193,-567.0,0.00016051,2]
[403597837,1769404239202,-6570.0,0.00016051,2]
[403597839,1769404239211,-420.0,0.00016078,2]
[403597841,1769404239221,-150.0,0.0001609,2]
[403597843,1769404239230,-150.0,0.0001609,2]
[403597845,1769404239239,-150.0,0.0001609,2]
[403597847,1769404239248,-150.0,0.00016092,2]
[403597849,1769404239257,-447.85808367,0.00016109,2]
[403597851,1769404239266,-290.03302316,0.00016126,2]
[403597853,1769404239276,-150.0,0.00016145,2]
[403597855,1769404239285,-150.0,0.00016145,2]
[403597857,1769404239294,-150.0,0.00016145,2]
[403597859,1769404239304,-150.0,0.0001615,2]
[403597861,1769404239313,-150.0,0.0001615,2]
[403597863,1769404239323,-4298.0,0.00016153,2]
[403597865,1769404239332,-1680.0,0.00016155,2]
[403597867,1769404239341,-150.0,0.00016163,5]
[403597869,1769404239350,-181.08010149,0.00016163,2]
[403597871,1769404239359,-885.86649465,0.00016163,2]
[403597873,1769404239368,-215.43199043,0.00016164,2]
[403597875,1769404239378,-343.41407803,0.0001617,2]
[403597877,1769404239387,-500.0,0.0001617,2]
[403597879,1769404239395,-182.73048696,0.0001617,2]
[403597881,1769404239404,-646.32125783,0.0001617,2]
[403597883,1769404239414,-4298.0,0.00016171,2]
[403597885,1769404239423,-234.8,0.00016197,2]
[403597887,1769404239432,-150.0,0.00016199,2]
[403597889,1769404239441,-150.0,0.00016199,2]
[403597891,1769404239450,-150.0,0.00016199,2]
[403597893,1769404239462,-150.0,0.00016205,2]
[403597895,1769404239472,-150.0,0.00016205,2]
[403597896,1769404239481,-150.0,0.00016218,5]
[403597897,1769404239490,-5888.0,0.00016227,2]
[403597898,1769404239501,-150.0,0.00016254,2]
[403597899,1769404239509,-150.0,0.00016254,2]
[403597900,1769404239519,-176.50115977,0.00016254,2]
[403597901,1769404239527,-150.0,0.0001626,2]
[403597902,1769404239536,-150.0,0.0001626,2]
[403597903,1769404239545,-2289.94091618,0.00016261,2]
[403597904,1769404239554,-2000.0,0.0001627,2]
[403597905,1769404239563,-2000.0,0.0001627,2]
[403597906,1769404239571,-2000.0,0.0001627,2]
[403597907,1769404239580,-150.0,0.00016273,5]
[403597908,1769404239589,-152.0,0.00016294,4]
[403597909,1769404239598,-200.0,0.00016307,2]
[403597910,1769404239606,-250.0,0.00016309,2]
[403597911,1769404239615,-250.0,0.00016309,2]
[403597912,1769404239624,-150.0,0.00016314,2]
[403597913,1769404239632,-150.0,0.00016314,2]
[403597915,1769404239641,-151.0,0.00016323,2]
[403597916,1769404239650,-4023.6325455,0.00016326,2]
[403597918,1769404239659,-2500.0,0.00016326,2]
[403597919,1769404239668,-150.0,0.00016327,5]
[403597921,1769404239677,-154.46158348,0.00016338,2]
[403597923,1769404239686,-242.05151373,0.00016338,2]
[403597925,1769404239695,-180.49,0.00016341,2]
[403597927,1769404239704,-151.0,0.00016348,2]
[403597929,1769404239714,-154.5499553,0.00016351,2]
[403597931,1769404239723,-153607.36705575,0.00016351,2]
[403597934,1769404239736,-17899.12158515,0.00016351,2]
[403597936,1769404239745,-1000.0,0.00016361,2]
[403597938,1769404239753,-150.0,0.00016369,2]
[403597940,1769404239763,-150.0,0.00016369,2]
[403597942,1769404239772,-150.0,0.00016382,5]
[403597944,1769404239781,-1086.0,0.000164,2]
[403597946,1769404239791,-1086.0,0.000164,2]
[403597948,1769404239801,-1086.0,0.000164,2]
[403597950,1769404239811,-1086.0,0.000164,2]
[403597952,1769404239821,-180.49,0.00016416,2]
[403597954,1769404239830,-180.49,0.00016416,2]
[403597956,1769404239840,-4298.0,0.00016421,2]
[403597958,1769404239850,-500.0,0.00016422,2]
[403597960,1769404239859,-250.0,0.00016424,2]
[403597962,1769404239868,-250.0,0.00016424,2]
[403597964,1769404239878,-500.0,0.00016425,2]
[403597966,1769404239887,-500.0,0.00016425,2]
[403597968,1769404239896,-63128.4022636,0.00016426,2]
[403597971,1769404239919,-4081.51319785,0.00016426,2]
[403597973,1769404239930,-1841.6,0.00016426,2]
[403597976,1769404239941,-919.38,0.00016426,2]
[403597978,1769404239952,-696.36722014,0.00016426,2]
[403597980,1769404239963,-3639.83365233,0.00016426,2]
[403597983,1769404239983,-1316.2203478,0.00016426,2]
[403597986,1769404240005,-405.31094203,0.00016426,2]
[403598007,1769404240335,-272.1298718,0.00016426,2]
[403598008,1769404240347,-397.19039853,0.00016426,2]
[403598037,1769404246373,-1272.0005268,0.00016051,2]
[403598040,1769405104073,193.85982939,0.00018,30]
[403598054,1769405431290,-1200.0,0.00013989,2]
[403598056,1769405431300,-7686.18718251,0.0001399,2]
[403598057,1769405431346,-1351.14592439,0.0001399,2]
[403598058,1769405431359,-1283.74605043,0.0001399,2]
[403598059,1769405431415,-754.68662215,0.0001399,2]
[403598060,1769405431427,-1183.91980456,0.0001399,2]
[403598061,1769405431436,-195.0,0.00014435,2]
[403598062,1769405431446,-500.0,0.00014534,2]
[403598063,1769405431457,-500.0,0.00014534,2]
[403598064,1769405431467,-500.0,0.00014534,2]
[403598065,1769405431476,-151.05197468,0.00014534,2]
[403598066,1769405431485,-151.0,0.00014534,2]
[403598067,1769405431497,-151.0,0.00014534,2]
[403598068,1769405431507,-153.76731991,0.00014534,2]
[403598069,1769405431518,-85.79243473,0.000146,2]
[403598070,1769405431550,-64.20756527,0.000146,2]
[403598071,1769405431561,-1858.1,0.00014646,2]
[403598072,1769405431570,-160.01,0.00014787,2]
[403598073,1769405431581,-500.0,0.00014849,2]
[403598074,1769405431591,-291.86,0.00014909,2]
[403598075,1769405431601,-1852.42,0.00014925,2]
[403598076,1769405431611,-3199.69,0.0001515,2]
[403598077,1769405431621,-1680.0,0.00015388,2]
[403598079,1769405431631,-300.0,0.00015613,2]
[403598081,1769405431640,-500.0,0.00015613,2]
[403598083,1769405431651,-500.0,0.00015613,2]
[403598085,1769405431660,-500.0,0.00015613,2]
[403598087,1769405431669,-500.0,0.00015613,2]
[403598089,1769405431679,-249.87657541,0.00015613,2]
[403598092,1769405431688,-500.0,0.00015613,2]
[403598096,1769405431697,-250.0,0.00015614,2]
[403598100,1769405431706,-721.12765535,0.00015614,2]
[403598102,1769405431715,-275.69730517,0.00015614,2]
[403598105,1769405431725,-2500.0,0.00015614,2]
[403598107,1769405431735,-322.6107,0.00015614,2]
[403598108,1769405431744,-2500.0,0.00015614,2]
[403598109,1769405431754,-500.0,0.00015614,2]
[403598111,1769405431763,-500.0,0.00015614,2]
[403598113,1769405431772,-500.0,0.00015614,2]
[403598114,1769405431781,-500.0,0.00015614,2]
[403598116,1769405431790,-500.0,0.00015614,2]
[403598118,1769405431800,-500.0,0.00015614,2]
[403598119,1769405431809,-500.0,0.00015614,2]
[403598121,1769405431818,-500.0,0.00015614,2]
[403598122,1769405431827,-500.0,0.00015614,2]
[403598123,1769405431836,-500.0,0.00015614,2]
[403598124,1769405431845,-840.76606737,0.00015614,2]
[403598125,1769405431854,-500.0,0.00015614,2]
[403598126,1769405431862,-500.0,0.00015614,2]
[403598127,1769405431871,-250.0,0.00015614,2]
[403598128,1769405431880,-250.0,0.00015614,2]
[403598130,1769405431893,-250.0,0.00015614,2]
[403598132,1769405431904,-250.0,0.00015614,2]
[403598133,1769405431914,-250.0,0.00015614,2]
[403598134,1769405431923,-250.0,0.00015614,2]
[403598135,1769405431935,-250.0,0.00015614,2]
[403598136,1769405431945,-250.0,0.00015614,2]
[403598137,1769405431955,-250.0,0.00015614,2]
[403598138,1769405431966,-250.0,0.00015614,2]
[403598139,1769405431975,-227.4149962,0.00015614,2]
[403598140,1769405437396,-22.5850038,0.00015614,2]
[403598141,1769405437406,-250.0,0.00015614,2]
[403598142,1769405437416,-209.40437684,0.00015614,2]
[403598143,1769405437425,-250.0,0.00015614,2]
[403598144,1769405437435,-250.0,0.00015614,2]
[403598145,1769405437445,-250.0,0.00015614,2]
[403598146,1769405437455,-174.61919141,0.00015614,2]
[403598147,1769405437464,-250.0,0.00015614,2]
[403598148,1769405437473,-250.0,0.00015614,2]
[403598149,1769405437482,-250.0,0.00015614,2]
[403598150,1769405437492,-250.0,0.00015614,2]
[403598151,1769405437501,-250.0,0.00015614,2]
[403598152,1769405437513,-250.0,0.00015614,2]
[403598153,1769405437523,-854.2589148,0.00015614,2]
[403598154,1769405437532,-250.0,0.00015614,2]
[403598155,1769405437541,-250.0,0.00015614,2]
[403598156,1769405437551,-250.0,0.00015614,2]
[403598157,1769405437561,-250.0,0.00015614,2]
[403598158,1769405437570,-250.0,0.00015614,2]
[403598159,1769405437579,-3000.0,0.00015614,2]
[403598160,1769405437588,-2500.0,0.00015614,2]
[403598161,1769405437598,-151.0,0.00015614,2]
[403598162,1769405437607,-250.0,0.00015614,2]
[403598163,1769405437616,-250.0,0.00015614,2]
[403598164,1769405437626,-250.0,0.00015614,2]
[403598165,1769405437644,-250.0,0.00015614,2]
[403598166,1769405437662,-1000.0,0.00015614,2]
[403598167,1769405437673,-1000.0,0.00015614,2]
[403598168,1769405437685,-250.0,0.00015614,2]
[403598170,1769405437695,-1000.0,0.00015614,2]
[403598172,1769405437705,-164.44577572,0.00015614,2]
[403598175,1769405437718,-85.55422428,0.00015614,2]
[403598176,1769405437729,-737.07365972,0.00015614,2]
[403598181,1769405437772,-262.92634028,0.00015614,2]
[403598182,1769405437781,-250.0,0.00015614,2]
[403598183,1769405437791,-1000.0,0.00015614,2]
[403598184,1769405437800,-500.0,0.00015614,2]
[403598185,1769405437810,-151.0,0.00015614,2]
[403598186,1769405437819,-151.0,0.00015614,2]
[403598187,1769405437828,-151.0,0.00015614,2]
[403598188,1769405437837,-151.0,0.00015614,2]
[403598189,1769405437846,-151.0,0.00015614,2]
[403598190,1769405437855,-151.0,0.00015614,2]
[403598191,1769405437864,-151.0,0.00015614,2]
[403598192,1769405437874,-151.0,0.00015614,2]
[403598193,1769405437883,-151.0,0.00015614,2]
[403598194,1769405437897,-151.0,0.00015614,2]
[403598195,1769405437906,-151.0,0.00015614,2]
[403598196,1769405437916,-55.51893184,0.00015614,2]
[403598197,1769405437931,-194.48106816,0.00015614,2]
[403598198,1769405437940,-250.0,0.00015614,2]
[403598199,1769405437950,-95.5311323,0.00015614,2]
[403598200,1769405437962,-154.4688677,0.00015614,2]
[403598201,1769405437971,-250.0,0.00015614,2]
[403598202,1769405437980,-250.0,0.00015614,2]
[403598203,1769405437989,-157.87437147,0.00015614,2]
[403598204,1769405437998,-578.20924308,0.00015614,2]
[403598205,1769405438007,-5610.0,0.00015678,2]
[403598206,1769405438017,-400.0,0.00015694,2]
[403598207,1769405438026,-500.0,0.00015699,2]
[403598208,1769405438035,-791.11501829,0.00015714,2]
[403598209,1769405438072,-4619.82097281,0.00015714,2]
[403598215,1769405439454,-199.0640089,0.00015714,2]
[403598216,1769405439464,-1280.8790409,0.000158,5]
[403598217,1769405439534,-1019.1209591,0.000158,5]
[403598218,1769405439544,-298.6440409,0.00015812,2]
[403598219,1769405439555,-396.98399804,0.00015812,2]
[403598220,1769405439566,-304.37196106,0.00015812,2]
[403598221,1769405439575,-193.85982939,0.00015852,2]
[403598222,1769405439585,-258.47977252,0.00015852,2]
[403598223,1769405439594,-162.41,0.000159,2]
[403598224,1769405439603,-2811.81752135,0.000159,5]
[403598225,1769405439634,-886.52454978,0.000159,5]
[403598226,1769405439647,-901.65792887,0.000159,5]
[403598227,1769405439657,-120.87027726,0.00015918,2]
[403598228,1769405439702,-554.31972274,0.00015918,2]
[403598229,1769405439713,-1000.0,0.0001593,2]
[403598230,1769405439722,-5610.0,0.00015969,2]
[403598231,1769405439732,-482.81304744,0.00016033,2]
[403598232,1769405439742,-151.0,0.0001604,2]
[403598233,1769405439751,-237.63678432,0.00016042,2]
[403598234,1769405439760,-240.38985462,0.00016042,2]
[403598235,1769405439770,-540.72746414,0.00016042,2]
[403598236,1769405439779,-261.69741633,0.00016042,2]
[403598237,1769405439789,-18055.73392743,0.00016043,7]
[403598238,1769405439798,-1000.0,0.00016088,2]
[403598239,1769405439808,-223.92904184,0.00016109,2]
[403598240,1769405439818,-150.0,0.00016145,2]
[403598241,1769405439827,-150.0,0.0001615,2]
[403598242,1769405439837,-151.83085648,0.0001615,2]
[403598243,1769405439847,-150.0,0.0001615,2]
[403598244,1769405439856,-150.0,0.0001615,2]
[403598245,1769405439866,-500.0,0.0001615,2]
[403598246,1769405439876,-150.0,0.0001615,2]
[403598247,1769405439887,-200.0,0.0001615,2]
[403598248,1769405439897,-150.0,0.0001615,2]
[403598249,1769405439907,-150.0,0.0001615,2]
[403598250,1769405439916,-150.0,0.0001615,2]
[403598251,1769405439926,-1341.372,0.00016154,2]
[403598252,1769405439937,-180.54,0.00016154,2]
[403598253,1769405439947,-5610.0,0.00016155,2]
[403598254,1769405439956,-5888.0,0.00016157,2]
[403598255,1769405439966,-181.08010149,0.00016162,2]
[403598256,1769405439976,-885.86649465,0.00016162,2]
[403598257,1769405439985,-150.0,0.00016164,2]
[403598258,1769405439994,-150.0,0.00016164,2]
[403598259,1769405440003,-150.0,0.00016164,2]
[403598260,1769405440013,-150.0,0.00016164,2]
[403598261,1769405440023,-5610.0,0.00016201,2]
[403598262,1769405440032,-150.0,0.00016205,2]
[403598263,1769405440042,-500.0,0.00016205,2]
[403598264,1769405440052,-200.0,0.00016205,2]
[403598265,1769405440061,-150.0,0.00016205,2]
[403598266,1769405440071,-150.0,0.00016205,2]
[403598267,1769405440080,-150.0,0.00016205,2]
[403598268,1769405440089,-1000.0,0.00016208,2]
[403598269,1769405440098,-150.0,0.00016219,2]
[403598270,1769405440108,-200.0,0.00016219,2]
[403598271,1769405440118,-150.0,0.00016219,2]
[403598272,1769405440127,-200.0,0.00016219,2]
[403598273,1769405440136,-5610.0,0.00016227,2]
[403598274,1769405440146,-5610.0,0.00016241,2]
[403598275,1769405440156,-1000.0,0.00016251,2]
[403598276,1769405440166,-150.0,0.0001626,2]
[403598277,1769405440176,-550.0,0.0001626,2]
[403598278,1769405440185,-150.0,0.0001626,2]
[403598279,1769405440195,-150.0,0.0001626,2]
[403598280,1769405440204,-150.0,0.0001626,2]
[403598281,1769405440214,-163.80164015,0.00016269,2]
[403598282,1769405440224,-4079.76717262,0.00016269,2]
[403598283,1769405440234,-2060.94682458,0.00016269,2]
[403598284,1769405440243,-2500.0,0.00016269,2]
[403598285,1769405440252,-1642.6712,0.0001627,2]
[403598286,1769405440262,-1642.6712,0.0001627,2]
[403598287,1769405440271,-1642.6712,0.0001627,2]
[403598288,1769405440281,-150.0,0.00016274,2]
[403598289,1769405440290,-150.0,0.00016274,2]
[403598290,1769405440299,-1000.0,0.00016276,2]
[403598291,1769405440309,-11358.4717,0.00016283,2]
[403598292,1769405440318,-5610.0,0.00016297,2]
[403598293,1769405440328,-200.0,0.00016307,2]
[403598294,1769405440339,-150.0,0.00016314,2]
[403598295,1769405440348,-200.0,0.00016314,2]
[403598296,1769405440358,-150.0,0.00016314,2]
[403598297,1769405440367,-150.0,0.00016314,2]
[403598298,1769405440377,-162.13285465,0.00016326,2]
[403598299,1769405440388,-150.0,0.00016328,2]
[403598300,1769405440398,-150.0,0.00016328,2]
[403598301,1769405440408,-154.46158348,0.00016338,2]
[403598302,1769405440419,-1000.0,0.00016339,2]
[403598303,1769405440428,-449.86533864,0.0001635,2]
[403598304,1769405440437,-1231.25,0.00016356,2]
[403598305,1769405440448,-558.94,0.00016356,2]
[403598306,1769405440458,-949.25,0.00016356,2]
[403598307,1769405440468,-1000.0,0.00016368,2]
[403598308,1769405440478,-34633.93711112,0.00016369,2]
[403598310,1769405442460,-316.47033406,0.00016369,2]
[403598311,1769405442623,-478.77671032,0.00016369,2]
[403598313,1769405445448,-1837.88060233,0.00016369,2]
[403598314,1769405445459,-2371.29992487,0.00016369,2]
[403598315,1769405445474,-362.84828034,0.00016369,2]
[403598316,1769405445560,-1141.6,0.00016369,2]
[403598319,1769405595599,1000.0,0.0001425,8]
[403598323,1769406342093,5533.0,0.000123,5]
[403598325,1769406631492,-1172.452008,0.00013337,2]
[403598326,1769406631503,-229.0,0.00014038,2]
[403598327,1769406631513,-193.27711953,0.00014039,2]
[403598328,1769406631523,-164.27087247,0.00014039,2]
[403598329,1769406631536,-244.57467899,0.00014039,2]
[403598330,1769406631547,-85.7379041,0.00014597,2]
[403598331,1769406631558,-80.9220959,0.00014597,2]
[403598332,1769406631568,-200.0,0.00014634,2]
[403598333,1769406631579,-165.9579041,0.00014877,2]
[403598334,1769406631639,-39.0420959,0.00014877,2]
[403598335,1769406631650,-166.66,0.00014904,2]
[403598336,1769406631659,-1000.0,0.00015154,2]
[403598337,1769406631669,-166.66,0.00015211,2]
[403598338,1769406631678,-165.45,0.00015456,2]
[403598339,1769406631687,-300.0,0.00015517,2]
[403598340,1769406631697,-166.66,0.00015519,2]
[403598341,1769406631708,-752.00443598,0.00015594,2]
[403598342,1769406631719,-447.99556402,0.00015594,2]
[403598343,1769406631729,-300.0,0.00015594,2]
[403598344,1769406631738,-578.20924308,0.00015595,2]
[403598345,1769406631749,-168.71166308,0.00015595,2]
[403598346,1769406631759,-854.2589148,0.00015595,2]
[403598347,1769406631768,-151.0,0.00015595,2]
[403598348,1769406631778,-151.0,0.00015595,2]
[403598350,1769406631788,-151.0,0.00015595,2]
[403598351,1769406631797,-151.0,0.00015595,2]
[403598353,1769406631808,-721.12765535,0.00015595,2]
[403598355,1769406631818,-151.0,0.00015595,2]
[403598357,1769406631827,-151.0,0.00015595,2]
[403598360,1769406631840,-322.6107,0.00015595,2]
[403598362,1769406631850,-151.0,0.00015595,2]
[403598364,1769406631859,-151.0,0.00015595,2]
[403598366,1769406631869,-151.0,0.00015595,2]
[403598368,1769406631878,-151.0,0.00015595,2]
[403598369,1769406631887,-151.0,0.00015595,2]
[403598372,1769406631897,-1000.0,0.00015641,2]
[403598374,1769406631907,-166.66,0.00015826,2]
[403598376,1769406631918,-152.0,0.00015852,3]
[403598378,1769406631927,-94.37525452,0.00015874,2]
[403598380,1769406631940,-628.15595217,0.00015874,2]
[403598382,1769406631950,-957.98826965,0.000159,5]
[403598388,1769406631992,-536.05188292,0.000159,5]
[403598390,1769406632004,-405.95984743,0.000159,5]
[403598392,1769406632012,-288.1864068,0.0001592,2]
[403598394,1769406632025,-711.8135932,0.0001592,2]
[403598396,1769406632035,-1000.0,0.00015994,2]
[403598398,1769406632044,-242.38811009,0.00016,2]
[403598405,1769406632104,-3974.61188991,0.00016,2]
[403598406,1769406632113,-1000.0,0.00016012,2]
[403598407,1769406632123,-223.92904184,0.00016109,2]
[403598408,1769406632132,-166.66,0.00016133,2]
[403598409,1769406632141,-222.04101513,0.00016142,2]
[403598410,1769406632150,-500.0,0.00016142,2]
[403598411,1769406632507,-500.0,0.00016142,2]
[403598412,1769406632545,-298.2112881,0.00016142,2]
[403598413,1769406632555,-500.0,0.00016142,2]
[403598414,1769406632564,-500.0,0.00016142,2]
[403598415,1769406632573,-500.0,0.00016142,2]
[403598416,1769406632582,-500.0,0.00016142,2]
[403598417,1769406632591,-99.15853768,0.00016142,2]
[403598418,1769406632603,-400.84146232,0.00016142,2]
[403598419,1769406632613,-128.83315715,0.00016142,2]
[403598420,1769406632629,-371.16684285,0.00016142,2]
[403598421,1769406632639,-115.70418715,0.00016142,2]
[403598422,1769406632651,-384.29581285,0.00016142,2]
[403598423,1769406632661,-500.0,0.00016142,2]
[403598424,1769406632670,-500.0,0.00016142,2]
[403598425,1769406632680,-184.82249196,0.00016142,2]
[403598428,1769406637598,-315.17750804,0.00016142,2]
[403598429,1769406637609,-500.0,0.00016142,2]
[403598430,1769406637619,-81.22431695,0.00016142,2]
[403598431,1769406637631,-418.77568305,0.00016142,2]
[403598432,1769406637640,-215.07129613,0.00016142,2]
[403598433,1769406637651,-284.92870387,0.00016142,2]
[403598434,1769406637661,-500.0,0.00016142,2]
[403598435,1769406637671,-481.08246817,0.00016142,2]
[403598436,1769406637803,-18.91753183,0.00016142,2]
[403598437,1769406637814,-500.0,0.00016142,2]
[403598438,1769406637824,-885.86649465,0.00016143,2]